Workbook

Sheet 1
A1: 111 | I1: 222 | Q1: 333
A3: 1 | E3: 3 | I3: 6 | M3: 8 | Q3: 10 | U3: 12
A4: 1 | B4: 1 | C4: 1 | E4: 3 | F4: 3 | G4: 3 | I4: 6 | J4: 6 | K4: 6 | M4: 8 | N4: 8 | O4: 8 | Q4: 10 | R4: 10 | S4: 10 | U4: 12 | V4: 12 | W4: 12
A5: 1 | B5: 1 | C5: 1 | E5: 3 | F5: 3 | G5: 3 | I5: 6 | J5: 6 | K5: 6 | M5: 8 | N5: 8 | O5: 8 | Q5: 10 | R5: 10 | S5: 10 | U5: 12 | V5: 12 | W5: 12
A6: 1 | B6: 1 | C6: 1 | E6: 3 | F6: 3 | G6: 3 | I6: 6 | J6: 6 | K6: 6 | M6: 8 | N6: 8 | O6: 8 | Q6: 10 | R6: 10 | S6: 10 | U6: 12 | V6: 12 | W6: 12
A7: 1 | B7: 1 | C7: 1 | E7: 3 | F7: 3 | G7: 3 | I7: 6 | J7: 6 | K7: 6 | M7: 8 | N7: 8 | O7: 8 | Q7: 10 | R7: 10 | S7: 10 | U7: 12 | V7: 12 | W7: 12
A8: 1 | B8: 1 | C8: 1 | E8: 3 | F8: 3 | G8: 3 | I8: 6 | J8: 6 | K8: 6 | M8: 8 | N8: 8 | O8: 8 | Q8: 10 | R8: 10 | S8: 10 | U8: 12 | V8: 12 | W8: 12
A9: 1 | B9: 1 | C9: 1 | E9: =SUM(E4:E8) -> 15 | F9: =SUM(F4:F8) -> 15 | G9: 15 | I9: 6 | J9: 6 | K9: 6 | M9: 8 | N9: 8 | O9: 8 | Q9: 10 | R9: 10 | S9: 10 | U9: 12 | V9: 12 | W9: 12
A10: 1 | B10: 1 | C10: 1 | E10: =SUM(E4:E9) -> 30 | F10: =SUM(F4:F9) -> 30 | G10: 30 | I10: 6 | J10: 6 | K10: 6 | M10: 8 | N10: 8 | O10: 8 | Q10: 10 | R10: 10 | S10: 10 | U10: 12 | V10: 12 | W10: 12
A11: 1 | B11: 1 | C11: 1 | I11: 6 | J11: 6 | K11: 6 | M11: 8 | N11: 8 | O11: 8 | Q11: 10 | R11: 10 | S11: 10 | U11: 12 | V11: 12 | W11: 12
A12: 1 | B12: 1 | C12: 1 | I12: =SUM(I4:I11) -> 48 | J12: =SUM(J4:J11) -> 48 | K12: 48 | M12: 8 | N12: 8 | O12: 8 | Q12: 10 | R12: 10 | S12: 10 | U12: 12 | V12: 12 | W12: 12
A13: 1 | B13: 1 | C13: 1 | E13: 4 | I13: =SUM(I4:I12) -> 96 | J13: =SUM(J4:J12) -> 96 | K13: 96 | M13: 8 | N13: 8 | O13: 8 | Q13: 10 | R13: 10 | S13: 10 | U13: 12 | V13: 12 | W13: 12
A14: 1 | B14: 1 | C14: 1 | E14: 4 | F14: 4 | G14: 4 | M14: 8 | N14: 8 | O14: 8 | Q14: 10 | R14: 10 | S14: 10 | U14: 12 | V14: 12 | W14: 12
A15: =SUM(A4:A14) -> 11 | B15: =SUM(B4:B14) -> 11 | C15: 11 | E15: 4 | F15: 4 | G15: 4 | M15: 8 | N15: 8 | O15: 8 | Q15: 10 | R15: 10 | S15: 10 | U15: =SUM(U4:U14) -> 132 | V15: =SUM(V4:V14) -> 132 | W15: 132
A16: =SUM(A4:A15) -> 22 | B16: =SUM(B4:B15) -> 22 | C16: 22 | E16: 4 | F16: 4 | G16: 4 | I16: 7 | M16: 8 | N16: 8 | O16: 8 | Q16: 10 | R16: 10 | S16: 10 | U16: =SUM(U4:U15) -> 264 | V16: =SUM(V4:V15) -> 264 | W16: 264
E17: 4 | F17: 4 | G17: 4 | I17: 7 | J17: 7 | K17: 7 | M17: 8 | N17: 8 | O17: 8 | Q17: =SUM(Q4:Q16) -> 130 | R17: =SUM(R4:R16) -> 130 | S17: 130
E18: 4 | F18: 4 | G18: 4 | I18: 7 | J18: 7 | K18: 7 | M18: 8 | N18: 8 | O18: 8 | Q18: =SUM(Q4:Q17) -> 260 | R18: =SUM(R4:R17) -> 260 | S18: 260
A19: 2 | E19: 4 | F19: 4 | G19: 4 | I19: 7 | J19: 7 | K19: 7 | M19: 8 | N19: 8 | O19: 8 | U19: 13
A20: 2 | B20: 2 | C20: 2 | E20: 4 | F20: 4 | G20: 4 | I20: 7 | J20: 7 | K20: 7 | M20: =SUM(M4:M19) -> 128 | N20: =SUM(N4:N19) -> 128 | O20: 128 | U20: 13 | V20: 13 | W20: 13
A21: 2 | B21: 2 | C21: 2 | E21: 4 | F21: 4 | G21: 4 | I21: 7 | J21: 7 | K21: 7 | M21: =SUM(M4:M20) -> 256 | N21: =SUM(N4:N20) -> 256 | O21: 256 | Q21: 11 | U21: 13 | V21: 13 | W21: 13
A22: 2 | B22: 2 | C22: 2 | E22: 4 | F22: 4 | G22: 4 | I22: 7 | J22: 7 | K22: 7 | Q22: 11 | R22: 11 | S22: 11 | U22: 13 | V22: 13 | W22: 13
A23: 2 | B23: 2 | C23: 2 | E23: =SUM(E14:E22) -> 36 | F23: =SUM(F14:F22) -> 36 | G23: 36 | I23: 7 | J23: 7 | K23: 7 | Q23: 11 | R23: 11 | S23: 11 | U23: 13 | V23: 13 | W23: 13
A24: 2 | B24: 2 | C24: 2 | E24: =SUM(E14:E23) -> 72 | F24: =SUM(F14:F23) -> 72 | G24: 72 | I24: 7 | J24: 7 | K24: 7 | M24: 9 | Q24: 11 | R24: 11 | S24: 11 | U24: 13 | V24: 13 | W24: 13
A25: 2 | B25: 2 | C25: 2 | I25: 7 | J25: 7 | K25: 7 | M25: 9 | N25: 9 | O25: 9 | Q25: 11 | R25: 11 | S25: 11 | U25: =SUM(U20:U24) -> 65 | V25: =SUM(V20:V24) -> 65 | W25: 65
A26: 2 | B26: 2 | C26: 2 | I26: 7 | J26: 7 | K26: 7 | M26: 9 | N26: 9 | O26: 9 | Q26: 11 | R26: 11 | S26: 11 | U26: =SUM(U20:U25) -> 130 | V26: =SUM(V20:V25) -> 130 | W26: 130
A27: 2 | B27: 2 | C27: 2 | E27: 5 | I27: 7 | J27: 7 | K27: 7 | M27: 9 | N27: 9 | O27: 9 | Q27: 11 | R27: 11 | S27: 11
A28: 2 | B28: 2 | C28: 2 | E28: 5 | F28: 5 | G28: 5 | I28: 7 | J28: 7 | K28: 7 | M28: 9 | N28: 9 | O28: 9 | Q28: 11 | R28: 11 | S28: 11
A29: 2 | B29: 2 | C29: 2 | E29: 5 | F29: 5 | G29: 5 | I29: 7 | J29: 7 | K29: 7 | M29: 9 | N29: 9 | O29: 9 | Q29: 11 | R29: 11 | S29: 11 | U29: 14
A30: 2 | B30: 2 | C30: 2 | E30: 5 | F30: 5 | G30: 5 | I30: 7 | J30: 7 | K30: 7 | M30: =SUM(M25:M29) -> 45 | N30: =SUM(N25:N29) -> 45 | O30: 45 | Q30: 11 | R30: 11 | S30: 11 | U30: 14 | V30: 14 | W30: 14
A31: 2 | B31: 2 | C31: 2 | E31: 5 | F31: 5 | G31: 5 | I31: 7 | J31: 7 | K31: 7 | M31: =SUM(M25:M30) -> 90 | N31: =SUM(N25:N30) -> 90 | O31: 90 | Q31: 11 | R31: 11 | S31: 11 | U31: 14 | V31: 14 | W31: 14
A32: 2 | B32: 2 | C32: 2 | E32: 5 | F32: 5 | G32: 5 | I32: 7 | J32: 7 | K32: 7 | Q32: 11 | R32: 11 | S32: 11 | U32: 14 | V32: 14 | W32: 14
A33: 2 | B33: 2 | C33: 2 | E33: 5 | F33: 5 | G33: 5 | I33: 7 | J33: 7 | K33: 7 | Q33: 11 | R33: 11 | S33: 11 | U33: 14 | V33: 14 | W33: 14
A34: 2 | B34: 2 | C34: 2 | E34: 5 | F34: 5 | G34: 5 | I34: 7 | J34: 7 | K34: 7 | Q34: 11 | R34: 11 | S34: 11 | U34: 14 | V34: 14 | W34: 14
A35: =SUM(A20:A34) -> 30 | B35: =SUM(B20:B34) -> 30 | C35: 30 | E35: 5 | F35: 5 | G35: 5 | I35: =SUM(I17:I34) -> 126 | J35: =SUM(J17:J34) -> 126 | K35: 126 | Q35: 11 | R35: 11 | S35: 11 | U35: 14 | V35: 14 | W35: 14
A36: =SUM(A20:A35) -> 60 | B36: =SUM(B20:B35) -> 60 | C36: 60 | E36: =SUM(E28:E35) -> 40 | F36: =SUM(F28:F35) -> 40 | G36: 40 | I36: =SUM(I17:I35) -> 252 | J36: =SUM(J17:J35) -> 252 | K36: 252 | Q36: =SUM(Q22:Q35) -> 154 | R36: =SUM(R22:R35) -> 154 | S36: 154 | U36: =SUM(U30:U35) -> 84 | V36: =SUM(V30:V35) -> 84 | W36: 84
E37: =SUM(E28:E36) -> 80 | F37: =SUM(F28:F36) -> 80 | G37: 80 | Q37: =SUM(Q22:Q36) -> 308 | R37: =SUM(R22:R36) -> 308 | S37: 308 | U37: =SUM(U30:U36) -> 168 | V37: =SUM(V30:V36) -> 168 | W37: 168
